[Event "European Online Club-ch-G 2021"]
[Site "Online"]
[Date "2021.03.27"]
[Round "7.15"]
[White "Gasimov, Parviz"]
[Black "Najer, Evgeniy"]
[Result "1/2-1/2"]
[ECO "B12"]
[WhiteElo "2337"]
[BlackElo "2648"]
[Annotator "ChessBase"]
[PlyCount "135"]
[EventDate "2021.03.27"]
[EventType "team-tourn"]
[EventCountry "NET"]
[SourceTitle "playchess.com"]
[Source "ChessBase"]
[SourceQuality "1"]
[TimeControl "900+5"]

1. e4 {[%emt 0:00:00]} c6 {[%emt 0:00:03]} 2. d4 {[%emt 0:00:03]} d5 {[%emt 0:00:01]} 3. e5 {[%emt 0:00:01]} Bf5 {[%emt 0:00:03]} 4. Nf3 {[%emt 0:00:02]} e6 {[%emt 0:00:01]} 5. Be2 {[%emt 0:00:04]} Ne7 {[%emt 0:00:20]} 6. O-O {[%emt 0:00:03]} h6 {[%emt 0:00:11]} 7. Nbd2 {[%emt 0:00:05]} Nd7 {[%emt 0:00:03]} 8. Nb3 {[%emt 0:00:04]} Qc7 {[%emt 0:00:22]} 9. Bd2 {[%emt 0:01:49]} a5 {[%emt 0:00:10]} 10. a4 {[%emt 0:00:10]} g5 {[%emt 0:00:02]} 11. Ne1 {[%emt 0:00:24]} c5 {[%emt 0:00:20]} 12. Nxc5 {[%emt 0:00:56]} Nxc5 {[%emt 0:00:04]} 13. dxc5 {[%emt 0:00:02]} Nc6 {[%emt 0:00:36]} 14. Bd3 {[%emt 0:02:04]} Bxc5 {[%emt 0:08:38]} 15. Bxf5 {[%emt 0:00:50]} exf5 {[%emt 0:00:02]} 16. Nd3 {[%emt 0:00:01]} Be7 {[%emt 0:00:02]} 17. Qh5 {[%emt 0:04:04]} Qd7 {[%emt 0:00:37]} 18. e6 {[%emt 0:01:42]} Qxe6 {[%emt 0:00:04]} 19. Bxg5 {[%emt 0:01:18]} Qg6 {[%emt 0:02:20]} 20. Qxg6 {[%emt 0:00:06]} fxg6 {[%emt 0:00:01]} 21. Bxe7 {[%emt 0:00:06]} Nxe7 {[%emt 0:00:10]} 22. Rfe1 {[%emt 0:00:29]} Kf7 {[%emt 0:00:02]} 23. Re5 {[%emt 0:00:43]} Rhd8 {[%emt 0:00:28]} 24. Nf4 {[%emt 0:00:51]} Nc6 {[%emt 0:01:22]} 25. Rxd5 {[%emt 0:00:10]} Rxd5 {[%emt 0:00:02]} 26. Nxd5 {[%emt 0:00:02]} Rd8 {[%emt 0:00:01]} 27. c4 {[%emt 0:00:07]} Nb4 {[%emt 0:00:24]} 28. Rd1 {[%emt 0:00:51]} Nxd5 {[%emt 0:00:02]} 29. cxd5 {[%emt 0:00:02]} Rd6 {[%emt 0:00:17]} 30. g3 {[%emt 0:00:08]} Ke7 {[%emt 0:00:10]} 31. Kg2 {[%emt 0:00:06]} Rb6 {[%emt 0:00:02]} 32. Re1+ {[%emt 0:00:06]} Kd7 {[%emt 0:00:02]} 33. Re2 {[%emt 0:00:04]} Rd6 {[%emt 0:00:14]} 34. Rd2 {[%emt 0:00:04]} Rb6 {[%emt 0:00:02]} 35. h4 {[%emt 0:00:08]} Rb4 {[%emt 0:00:03]} 36. Re2 {[%emt 0:00:03]} Rxa4 {[%emt 0:00:04]} 37. Re6 {[%emt 0:00:07]} Rb4 {[%emt 0:00:09]} 38. Rxg6 {[%emt 0:00:03]} Rxb2 {[%emt 0:00:02]} 39. Rxh6 {[%emt 0:00:06]} a4 {[%emt 0:00:02]} 40. Rh8 {[%emt 0:00:02]} Rb6 {[%emt 0:00:11]} 41. Ra8 {[%emt 0:00:09]} Ra6 {[%emt 0:00:02]} 42. Rb8 {[%emt 0:00:02]} Ra7 {[%emt 0:00:13]} 43. h5 {[%emt 0:00:13]} a3 {[%emt 0:00:01]} 44. h6 {[%emt 0:00:01]} a2 {[%emt 0:00:11]} 45. h7 {[%emt 0:00:02]} a1=Q {[%emt 0:00:03]} 46. h8=Q {[%emt 0:00:02]} Qxh8 {[%emt 0:00:02]} 47. Rxh8 {[%emt 0:00:02]} Kd6 {[%emt 0:00:15]} 48. Rf8 {[%emt 0:00:11]} b5 {[%emt 0:00:11]} 49. Rxf5 {[%emt 0:00:12]} b4 {[%emt 0:00:01]} 50. Rf6+ {[%emt 0:00:02]} Kxd5 {[%emt 0:00:03]} 51. Rb6 {[%emt 0:00:02]} Kc4 {[%emt 0:00:02]} 52. f4 {[%emt 0:00:04]} b3 {[%emt 0:00:05]} 53. g4 {[%emt 0:00:02]} Ra5 {[%emt 0:00:08]} 54. Rc6+ {[%emt 0:00:11]} Rc5 {[%emt 0:00:03]} 55. Re6 {[%emt 0:00:02]} b2 {[%emt 0:00:03]} 56. Re1 {[%emt 0:00:02]} Kd3 {[%emt 0:00:05]} 57. Rb1 {[%emt 0:00:02]} Kc2 {[%emt 0:00:07]} 58. Rxb2+ {[%emt 0:00:02]} Kxb2 {[%emt 0:00:02]} 59. Kf3 {[%emt 0:00:08]} Kc3 {[%emt 0:00:06]} 60. Ke4 {[%emt 0:00:09]} Rc4+ {[%emt 0:00:13]} 61. Ke5 {[%emt 0:00:07]} Kd3 {[%emt 0:00:02]} 62. g5 {[%emt 0:00:07]} Re4+ {[%emt 0:00:02]} 63. Kf5 {[%emt 0:00:04]} Ke3 {[%emt 0:00:02]} 64. g6 {[%emt 0:00:01]} Rxf4+ {[%emt 0:00:01]} 65. Ke6 {[%emt 0:00:02]} Rg4 {[%emt 0:00:06]} 66. Kf7 {[%emt 0:00:02]} Kf4 {[%emt 0:00:07]} 67. g7 {[%emt 0:00:01]} Rxg7+ {[%emt 0:00:03]} 68. Kxg7 {[%emt 0:00:02]} 1/2-1/2

[Event "European Online Club-ch-G 2021"]
[Site "Online"]
[Date "2021.03.27"]
[Round "7.16"]
[White "Murzin, Volodar"]
[Black "Hasanzade, Toghrul"]
[Result "1-0"]
[ECO "C11"]
[WhiteElo "2478"]
[BlackElo "2322"]
[Annotator "ChessBase"]
[PlyCount "46"]
[EventDate "2021.03.27"]
[EventType "team-tourn"]
[EventCountry "NET"]
[SourceTitle "playchess.com"]
[Source "ChessBase"]
[SourceQuality "1"]
[TimeControl "900+5"]

1. e4 {[%emt 0:00:51]} e6 {[%emt 0:00:09]} 2. d4 {[%emt 0:00:02]} d5 {[%emt 0:00:02]} 3. Nc3 {[%emt 0:00:02]} Nf6 {[%emt 0:00:03]} 4. e5 {[%emt 0:00:02]} Nfd7 {[%emt 0:00:02]} 5. Nce2 {[%emt 0:00:03]} c5 {[%emt 0:00:03]} 6. c3 {[%emt 0:00:02]} cxd4 {[%emt 0:00:12]} 7. cxd4 {[%emt 0:00:02]} f6 {[%emt 0:00:01]} 8. f4 {[%emt 0:00:02]} fxe5 {[%emt 0:00:18]} 9. fxe5 {[%emt 0:00:10]} Qh4+ {[%emt 0:00:22]} 10. g3 {[%emt 0:00:04]} Qe4 {[%emt 0:00:27]} 11. Kf2 {[%emt 0:00:27]} Nxe5 {[%emt 0:00:43]} 12. Nf4 {[%emt 0:00:55]} Qxh1 {[%emt 0:00:36]} 13. Qh5+ {[%emt 0:00:27]} Nf7 {[%emt 0:01:24]} 14. Bg2 {[%emt 0:00:06]} g6 {[%emt 0:00:03]} 15. Qe2 {[%emt 0:00:59]} Qxh2 {[%emt 0:00:11]} 16. Nf3 {[%emt 0:00:03]} Qxg2+ {[%emt 0:01:00]} 17. Kxg2 {[%emt 0:00:05]} Nc6 {[%emt 0:00:40]} 18. Nxd5 {[%emt 0:00:17]} Bd6 {[%emt 0:00:35]} 19. Nf6+ {[%emt 0:00:13]} Ke7 {[%emt 0:00:05]} 20. Ne4 {[%emt 0:00:03]} Bd7 {[%emt 0:00:05]} 21. Nxd6 {[%emt 0:00:12]} Nxd6 {[%emt 0:00:06]} 22. d5 {[%emt 0:00:05]} Nd8 {[%emt 0:00:15]} 23. Bg5+ {[%emt 0:00:04]} Ke8 {[%emt 0:00:05]} 1-0

[Event "European Online Club-ch-G 2021"]
[Site "Online"]
[Date "2021.03.27"]
[Round "7.17"]
[White "Stalmach, Richard"]
[Black "Flear, Glenn C"]
[Result "1-0"]
[ECO "D46"]
[WhiteElo "2296"]
[BlackElo "2431"]
[Annotator "NA"]
[PlyCount "109"]
[EventDate "2021.03.27"]
[EventType "team-tourn"]
[EventCountry "NET"]
[SourceTitle "playchess.com"]
[Source "ChessBase"]
[SourceQuality "1"]
[TimeControl "900+5"]

1. d4 {[%emt 0:00:00]} d5 {[%emt 0:00:05]} 2. c4 {[%emt 0:00:05]} e6 {[%emt 0:00:04]} 3. Nc3 {[%emt 0:00:04]} c6 {[%emt 0:00:05]} 4. e3 {[%emt 0:00:08]} Nf6 {[%emt 0:00:05]} 5. Nf3 {[%emt 0:00:17]} Nbd7 {[%emt 0:00:04]} 6. Qc2 {[%emt 0:00:04]} b6 {[%emt 0:00:05]} 7. Bd3 {[%emt 0:00:30]} Bb7 {[%emt 0:00:05]} 8. O-O {[%emt 0:00:22]} Be7 {[%emt 0:00:04]} 9. b3 {[%emt 0:00:51]} O-O {[%emt 0:00:07]} 10. Bb2 {[%emt 0:01:18]} h6 {[%emt 0:00:15]} 11. Rad1 {[%emt 0:00:14]} Qc7 {[%emt 0:00:18]} 12. Rfe1 {[%emt 0:01:16]} Rac8 {[%emt 0:01:15]} 13. Ne2 {[%emt 0:01:03]} Rfd8 {[%emt 0:00:41]} 14. Ng3 {[%emt 0:00:14]} c5 {[%emt 0:00:33]} 15. cxd5 {[%emt 0:00:12]} Nxd5 {[%emt 0:00:40]} 16. Qe2 {[%emt 0:01:04]} cxd4 {[%emt 0:01:14]} 17. Nxd4 {[%emt 0:00:06]} Nc3 {[%emt 0:00:29]} 18. Bxc3 {[%emt 0:00:11]} Qxc3 {[%emt 0:00:03]} 19. Nh5 {[%emt 0:01:10]} Nf6 {[%emt 0:00:33]} 20. Bb1 {[%emt 0:00:27]} Nxh5 {[%emt 0:00:57]} 21. Qxh5 {[%emt 0:00:04]} Bf6 {[%emt 0:00:04]} 22. Qg4 {[%emt 0:02:06]} Bxd4 {[%emt 0:01:45]} 23. exd4 {[%emt 0:00:05]} Qa5 {[%emt 0:01:28]} 24. h4 {[%emt 0:00:14]} Qb4 {[%emt 0:00:39]} 25. Re3 {[%emt 0:01:24]} Rc3 {[%emt 0:00:10]} 26. Re5 {[%emt 0:00:18]} Qe7 {[%emt 0:00:47]} 27. Qf4 {[%emt 0:00:36]} Qf6 {[%emt 0:00:36]} 28. Qxf6 {[%emt 0:00:07]} gxf6 {[%emt 0:00:03]} 29. Re3 {[%emt 0:00:06]} Rdc8 {[%emt 0:00:08]} 30. Rxc3 {[%emt 0:00:06]} Rxc3 {[%emt 0:00:03]} 31. f3 {[%emt 0:00:04]} f5 {[%emt 0:00:23]} 32. Kf2 {[%emt 0:00:09]} Kg7 {[%emt 0:00:03]} 33. Ke2 {[%emt 0:00:06]} Kf6 {[%emt 0:00:04]} 34. Kd2 {[%emt 0:00:03]} Rc8 {[%emt 0:00:05]} 35. Bd3 {[%emt 0:00:08]} Rd8 {[%emt 0:00:12]} 36. Kc3 {[%emt 0:00:18]} Rc8+ {[%emt 0:00:41]} 37. Kd2 {[%emt 0:00:16]} Kg6 {[%emt 0:00:12]} 38. Ke3 {[%emt 0:00:31]} Kf6 {[%emt 0:00:05]} 39. Bc4 {[%emt 0:00:03]} Ke7 {[%emt 0:00:33]} 40. Kf4 {[%emt 0:00:18]} Kd6 {[%emt 0:00:08]} 41. d5 {[%emt 0:00:09]} Bxd5 {[%emt 0:00:22]} 42. Bxd5 {[%emt 0:00:02]} exd5 {[%emt 0:00:03]} 43. Kxf5 {[%emt 0:00:01]} Rc2 {[%emt 0:00:03]} 44. g4 {[%emt 0:00:06]} Rxa2 {[%emt 0:00:03]} 45. Kf6 {[%emt 0:00:13]} Ra3 {[%emt 0:00:14]} 46. Kxf7 {[%emt 0:00:25]} Rxb3 {[%emt 0:00:04]} 47. f4 {[%emt 0:00:01]} Rf3 {[%emt 0:00:23]} 48. f5 {[%emt 0:00:14]} Rf4 {[%emt 0:00:20]} 49. Rg1 {[%emt 0:00:15]} d4 {[%emt 0:00:26]} 50. f6 {[%emt 0:00:05]} d3 {[%emt 0:00:37]} 51. g5 {[%emt 0:00:06]} Ke5 {[%emt 0:00:27]} 52. Ke7 {[%emt 0:00:10]} hxg5 {[%emt 0:00:14]} 53. hxg5 {[%emt 0:00:04]} d2 {[%emt 0:00:07]} 54. f7 {[%emt 0:00:18]} Kd4 {[%emt 0:00:10]} 55. f8=Q {[%emt 0:00:08]} 1-0

[Event "European Online Club-ch-G 2021"]
[Site "Online"]
[Date "2021.03.27"]
[Round "7.18"]
[White "Boyer, Mahel"]
[Black "Gnojek, Petr"]
[Result "1-0"]
[ECO "E61"]
[WhiteElo "2333"]
[BlackElo "2267"]
[Annotator "NA"]
[PlyCount "55"]
[EventDate "2021.03.27"]
[EventType "team-tourn"]
[EventCountry "NET"]
[SourceTitle "playchess.com"]
[Source "ChessBase"]
[SourceQuality "1"]
[TimeControl "900+5"]

1. d4 {[%emt 0:00:00]} Nf6 {[%emt 0:00:05]} 2. c4 {[%emt 0:00:11]} d6 {[%emt 0:00:12]} 3. Nf3 {[%emt 0:00:09]} g6 {[%emt 0:00:03]} 4. Nc3 {[%emt 0:00:02]} Nbd7 {[%emt 0:00:04]} 5. Bg5 {[%emt 0:00:04]} Bg7 {[%emt 0:00:24]} 6. e3 {[%emt 0:00:02]} O-O {[%emt 0:00:11]} 7. Be2 {[%emt 0:00:04]} c5 {[%emt 0:00:14]} 8. h3 {[%emt 0:00:09]} cxd4 {[%emt 0:01:04]} 9. exd4 {[%emt 0:00:00]} b6 {[%emt 0:00:32]} 10. O-O {[%emt 0:00:02]} Bb7 {[%emt 0:00:03]} 11. Re1 {[%emt 0:00:12]} Rc8 {[%emt 0:00:28]} 12. d5 {[%emt 0:00:02]} h6 {[%emt 0:01:33]} 13. Bh4 {[%emt 0:00:35]} Nc5 {[%emt 0:00:42]} 14. Bf1 {[%emt 0:00:03]} Qd7 {[%emt 0:00:30]} 15. b4 {[%emt 0:00:44]} Na6 {[%emt 0:00:03]} 16. a3 {[%emt 0:00:02]} g5 {[%emt 0:00:10]} 17. Nxg5 {[%emt 0:00:33]} hxg5 {[%emt 0:00:04]} 18. Bxg5 {[%emt 0:00:00]} e6 {[%emt 0:01:41]} 19. Re3 {[%emt 0:00:03]} exd5 {[%emt 0:00:47]} 20. Rg3 {[%emt 0:00:10]} Qf5 {[%emt 0:00:06]} 21. Bd3 {[%emt 0:03:28]} Qe5 {[%emt 0:00:05]} 22. Qf3 {[%emt 0:00:03]} Ne4 {[%emt 0:00:58]} 23. Nxe4 {[%emt 0:00:45]} dxe4 {[%emt 0:00:33]} 24. Bf6 {[%emt 0:00:03]} Qxa1+ {[%emt 0:02:19]} 25. Bxa1 {[%emt 0:00:03]} f6 {[%emt 0:00:02]} 26. Bxe4 {[%emt 0:00:31]} Bxe4 {[%emt 0:00:05]} 27. Qxe4 {[%emt 0:00:00]} Nc7 {[%emt 0:00:29]} 28. Qg4 {[%emt 0:00:09]} 1-0

[Event "European Online Club-ch-G 2021"]
[Site "Online"]
[Date "2021.03.27"]
[Round "7.19"]
[White "Frank, Adam"]
[Black "Collier, Timothy"]
[Result "1-0"]
[ECO "B15"]
[WhiteElo "2238"]
[BlackElo "2074"]
[Annotator "NA"]
[PlyCount "67"]
[EventDate "2021.03.27"]
[EventType "team-tourn"]
[EventCountry "NET"]
[SourceTitle "playchess.com"]
[Source "ChessBase"]
[SourceQuality "1"]
[TimeControl "900+5"]

1. e4 {[%emt 0:00:00]} c6 {[%emt 0:00:03]} 2. d4 {[%emt 0:00:03]} d5 {[%emt 0:00:03]} 3. Nd2 {[%emt 0:00:01]} dxe4 {[%emt 0:00:04]} 4. Nxe4 {[%emt 0:00:01]} Nf6 {[%emt 0:00:03]} 5. Nxf6+ {[%emt 0:00:02]} exf6 {[%emt 0:00:02]} 6. c3 {[%emt 0:00:01]} Bf5 {[%emt 0:00:46]} 7. Bd3 {[%emt 0:01:40]} Bg6 {[%emt 0:00:06]} 8. Ne2 {[%emt 0:00:08]} Bd6 {[%emt 0:00:08]} 9. Be3 {[%emt 0:00:13]} Qc7 {[%emt 0:00:27]} 10. h4 {[%emt 0:00:07]} Nd7 {[%emt 0:01:20]} 11. h5 {[%emt 0:00:08]} Bxd3 {[%emt 0:00:03]} 12. Qxd3 {[%emt 0:00:02]} O-O-O {[%emt 0:00:10]} 13. O-O-O {[%emt 0:00:02]} g6 {[%emt 0:00:07]} 14. Kb1 {[%emt 0:01:53]} f5 {[%emt 0:00:15]} 15. g3 {[%emt 0:00:21]} Kb8 {[%emt 0:00:55]} 16. c4 {[%emt 0:01:34]} c5 {[%emt 0:00:21]} 17. d5 {[%emt 0:00:36]} Ne5 {[%emt 0:00:08]} 18. Qb3 {[%emt 0:00:38]} Ng4 {[%emt 0:00:11]} 19. hxg6 {[%emt 0:00:07]} hxg6 {[%emt 0:00:11]} 20. Nf4 {[%emt 0:02:56]} Qb6 {[%emt 0:02:13]} 21. Qc2 {[%emt 0:00:34]} Be5 {[%emt 0:00:16]} 22. Bc1 {[%emt 0:00:37]} Kc8 {[%emt 0:00:46]} 23. f3 {[%emt 0:00:46]} Nf6 {[%emt 0:00:06]} 24. Nd3 {[%emt 0:01:02]} Rxh1 {[%emt 0:00:48]} 25. Rxh1 {[%emt 0:00:02]} Bxg3 {[%emt 0:00:38]} 26. Qg2 {[%emt 0:00:05]} Bd6 {[%emt 0:00:11]} 27. Bg5 {[%emt 0:00:05]} Be7 {[%emt 0:00:23]} 28. Ne5 {[%emt 0:00:04]} Re8 {[%emt 0:01:15]} 29. Nxf7 {[%emt 0:00:08]} Nh5 {[%emt 0:00:12]} 30. Re1 {[%emt 0:00:31]} Qb4 {[%emt 0:00:18]} 31. Qe2 {[%emt 0:00:20]} Ng3 {[%emt 0:00:27]} 32. Qe6+ {[%emt 0:00:03]} Kb8 {[%emt 0:00:01]} 33. Bf4+ {[%emt 0:00:11]} Ka8 {[%emt 0:00:02]} 34. Bxg3 {[%emt 0:00:08]} 1-0

[Event "European Online Club-ch-G 2021"]
[Site "Online"]
[Date "2021.03.27"]
[Round "7.20"]
[White "Hmamouche, Youssef"]
[Black "Paseka, Matyas"]
[Result "1-0"]
[ECO "E61"]
[WhiteElo "1926"]
[BlackElo "2069"]
[Annotator "NA"]
[PlyCount "65"]
[EventDate "2021.03.27"]
[EventType "team-tourn"]
[EventCountry "NET"]
[SourceTitle "playchess.com"]
[Source "ChessBase"]
[SourceQuality "1"]
[TimeControl "900+5"]

1. d4 {[%emt 0:00:00]} Nf6 {[%emt 0:00:04]} 2. Nf3 {[%emt 0:00:03]} g6 {[%emt 0:00:01]} 3. c4 {[%emt 0:00:02]} Bg7 {[%emt 0:00:02]} 4. Nc3 {[%emt 0:00:03]} O-O {[%emt 0:00:02]} 5. Bg5 {[%emt 0:00:03]} d6 {[%emt 0:00:06]} 6. e3 {[%emt 0:00:02]} Nbd7 {[%emt 0:00:36]} 7. Qc2 {[%emt 0:00:19]} c6 {[%emt 0:00:47]} 8. Be2 {[%emt 0:00:08]} e5 {[%emt 0:00:09]} 9. h3 {[%emt 0:00:19]} Qc7 {[%emt 0:00:23]} 10. O-O {[%emt 0:00:08]} Re8 {[%emt 0:00:05]} 11. Rac1 {[%emt 0:00:10]} b6 {[%emt 0:00:32]} 12. Rfd1 {[%emt 0:00:18]} Bb7 {[%emt 0:00:22]} 13. Bh4 {[%emt 0:00:18]} Rad8 {[%emt 0:00:42]} 14. Bg3 {[%emt 0:00:16]} Nh5 {[%emt 0:01:43]} 15. Bh2 {[%emt 0:00:05]} f5 {[%emt 0:01:12]} 16. b4 {[%emt 0:01:09]} Nf8 {[%emt 0:01:57]} 17. c5 {[%emt 0:00:16]} bxc5 {[%emt 0:03:32]} 18. bxc5 {[%emt 0:00:07]} f4 {[%emt 0:00:13]} 19. cxd6 {[%emt 0:00:06]} Rxd6 {[%emt 0:00:19]} 20. dxe5 {[%emt 0:00:31]} Rxd1+ {[%emt 0:00:07]} 21. Nxd1 {[%emt 0:00:19]} Ne6 {[%emt 0:00:19]} 22. Bc4 {[%emt 0:00:18]} Kh8 {[%emt 0:00:41]} 23. Bxe6 {[%emt 0:00:59]} Rxe6 {[%emt 0:00:03]} 24. exf4 {[%emt 0:00:18]} Bh6 {[%emt 0:00:15]} 25. Ng5 {[%emt 0:00:55]} Bxg5 {[%emt 0:00:19]} 26. fxg5 {[%emt 0:00:01]} Ng7 {[%emt 0:00:04]} 27. Ne3 {[%emt 0:00:10]} Qc8 {[%emt 0:00:45]} 28. Nc4 {[%emt 0:00:16]} Ba8 {[%emt 0:00:18]} 29. Nd6 {[%emt 0:00:04]} Qf8 {[%emt 0:00:16]} 30. Qb3 {[%emt 0:00:27]} Re7 {[%emt 0:00:44]} 31. Rb1 {[%emt 0:01:02]} Rd7 {[%emt 0:00:39]} 32. Qb8 {[%emt 0:00:14]} Rd8 {[%emt 0:00:03]} 33. Qxd8 {[%emt 0:00:04]} 1-0

[Event "European Online Club-ch-G 2021"]
[Site "Online"]
[Date "2021.03.27"]
[Round "8.1"]
[White "Altun, Arda"]
[Black "Flear, Glenn C"]
[Result "1/2-1/2"]
[ECO "C68"]
[WhiteElo "2074"]
[BlackElo "2431"]
[Annotator "NA"]
[PlyCount "61"]
[EventDate "2021.03.27"]
[EventType "team-tourn"]
[EventCountry "NET"]
[SourceTitle "playchess.com"]
[Source "ChessBase"]
[SourceQuality "1"]
[TimeControl "900+5"]

1. e4 {[%emt 0:00:00]} e5 {[%emt 0:00:04]} 2. Nf3 {[%emt 0:00:07]} Nc6 {[%emt 0:00:02]} 3. Bb5 {[%emt 0:00:10]} a6 {[%emt 0:00:04]} 4. Bxc6 {[%emt 0:00:25]} dxc6 {[%emt 0:00:04]} 5. O-O {[%emt 0:00:05]} Bd6 {[%emt 0:00:14]} 6. d4 {[%emt 0:00:21]} exd4 {[%emt 0:00:02]} 7. Qxd4 {[%emt 0:00:04]} f6 {[%emt 0:00:03]} 8. Bd2 {[%emt 0:00:31]} Qe7 {[%emt 0:00:49]} 9. Re1 {[%emt 0:00:27]} Be6 {[%emt 0:00:11]} 10. Nc3 {[%emt 0:01:55]} Bc5 {[%emt 0:00:42]} 11. Qd3 {[%emt 0:00:21]} Qf7 {[%emt 0:00:23]} 12. e5 {[%emt 0:01:06]} Ne7 {[%emt 0:00:06]} 13. exf6 {[%emt 0:03:04]} gxf6 {[%emt 0:00:09]} 14. Ne4 {[%emt 0:00:32]} Bf5 {[%emt 0:00:19]} 15. Bc3 {[%emt 0:00:54]} Bxe4 {[%emt 0:00:51]} 16. Rxe4 {[%emt 0:00:10]} O-O {[%emt 0:00:09]} 17. Rg4+ {[%emt 0:00:50]} Ng6 {[%emt 0:00:11]} 18. Rd1 {[%emt 0:00:54]} Be7 {[%emt 0:00:47]} 19. Qf5 {[%emt 0:00:29]} Rad8 {[%emt 0:00:13]} 20. Rxd8 {[%emt 0:00:43]} Rxd8 {[%emt 0:00:04]} 21. h4 {[%emt 0:00:06]} Qd5 {[%emt 0:02:12]} 22. Rxg6+ {[%emt 0:00:38]} hxg6 {[%emt 0:00:04]} 23. Qxg6+ {[%emt 0:00:03]} Kf8 {[%emt 0:00:15]} 24. Ng5 {[%emt 0:02:18]} Qd1+ {[%emt 0:00:05]} 25. Kh2 {[%emt 0:00:02]} Qd6+ {[%emt 0:00:22]} 26. g3 {[%emt 0:00:09]} fxg5 {[%emt 0:00:04]} 27. Bg7+ {[%emt 0:00:04]} Kg8 {[%emt 0:00:02]} 28. Bf6+ {[%emt 0:00:15]} Kf8 {[%emt 0:00:03]} 29. Bg7+ {[%emt 0:00:12]} Kg8 {[%emt 0:00:03]} 30. Bf6+ {[%emt 0:00:16]} Kf8 {[%emt 0:00:03]} 31. Bg7+ {[%emt 0:00:02]} 1/2-1/2

[Event "European Online Club-ch-G 2021"]
[Site "Online"]
[Date "2021.03.27"]
[Round "8.2"]
[White "Boyer, Mahel"]
[Black "Danaci, Ege"]
[Result "0-1"]
[ECO "B25"]
[WhiteElo "2333"]
[BlackElo "1996"]
[Annotator "NA"]
[PlyCount "68"]
[EventDate "2021.03.27"]
[EventType "team-tourn"]
[EventCountry "NET"]
[SourceTitle "playchess.com"]
[Source "ChessBase"]
[SourceQuality "1"]
[TimeControl "900+5"]

1. e4 {[%emt 0:00:00]} c5 {[%emt 0:00:04]} 2. d3 {[%emt 0:00:02]} Nc6 {[%emt 0:00:02]} 3. g3 {[%emt 0:00:01]} g6 {[%emt 0:00:03]} 4. Bg2 {[%emt 0:00:01]} Bg7 {[%emt 0:00:01]} 5. f4 {[%emt 0:00:00]} d6 {[%emt 0:00:02]} 6. Nf3 {[%emt 0:00:01]} Nf6 {[%emt 0:00:01]} 7. O-O {[%emt 0:00:01]} O-O {[%emt 0:00:02]} 8. Nc3 {[%emt 0:00:02]} Rb8 {[%emt 0:00:03]} 9. h3 {[%emt 0:00:03]} b5 {[%emt 0:00:03]} 10. g4 {[%emt 0:00:00]} b4 {[%emt 0:00:04]} 11. Ne2 {[%emt 0:00:01]} a5 {[%emt 0:00:02]} 12. Rb1 {[%emt 0:00:02]} a4 {[%emt 0:00:09]} 13. b3 {[%emt 0:00:01]} axb3 {[%emt 0:00:05]} 14. axb3 {[%emt 0:00:00]} Nd7 {[%emt 0:00:04]} 15. Be3 {[%emt 0:00:01]} Ra8 {[%emt 0:00:04]} 16. Qd2 {[%emt 0:00:04]} Ra2 {[%emt 0:00:12]} 17. Nc1 {[%emt 0:00:01]} Ra8 {[%emt 0:01:08]} 18. Ne2 {[%emt 0:00:04]} Bb7 {[%emt 0:00:38]} 19. Ng3 {[%emt 0:00:10]} Ra2 {[%emt 0:00:11]} 20. h4 {[%emt 0:00:02]} Qc7 {[%emt 0:00:28]} 21. h5 {[%emt 0:00:02]} Nd4 {[%emt 0:00:10]} 22. Rfc1 {[%emt 0:00:26]} Nb5 {[%emt 0:00:32]} 23. Rf1 {[%emt 0:00:15]} Rfa8 {[%emt 0:00:38]} 24. f5 {[%emt 0:00:09]} Nd4 {[%emt 0:01:11]} 25. Ne1 {[%emt 0:00:25]} Ne5 {[%emt 0:00:13]} 26. Bh3 {[%emt 0:00:15]} Rxc2 {[%emt 0:01:05]} 27. Qd1 {[%emt 0:00:08]} Rca2 {[%emt 0:00:39]} 28. g5 {[%emt 0:00:02]} d5 {[%emt 0:01:19]} 29. Bf4 {[%emt 0:00:42]} dxe4 {[%emt 0:00:27]} 30. fxg6 {[%emt 0:00:16]} Nef3+ {[%emt 0:00:46]} 31. Nxf3 {[%emt 0:00:02]} Qxf4 {[%emt 0:00:10]} 32. gxf7+ {[%emt 0:00:09]} Kf8 {[%emt 0:00:03]} 33. Nh1 {[%emt 0:02:01]} Nxf3+ {[%emt 0:00:08]} 34. Rxf3 {[%emt 0:00:02]} Qh2+ {[%emt 0:00:28]} 0-1